bitfinex-derivatives/quotes_ETHF0:USTF0_20260118
["timestamp","ask_amount","ask_price","bid_price","bid_amount"]
[1768729572294,0.0031246,3324.0,3322.9,0.96713494]
[1768729577695,1.10820926,3324.0,3322.6,0.15055]
[1768729577896,0.96713494,3323.8,3322.7,2.234]
[1768729578293,0.96713494,3323.8,3322.7,2.235]
[1768729578494,0.13794972,3323.9,3322.7,2.235]
[1768729578798,0.96713494,3323.7,3322.7,2.235]
[1768729579295,0.13794972,3323.9,3322.7,2.235]
[1768729580593,0.13794972,3323.9,3322.6,0.15055]
[1768729581097,0.13794972,3323.7,3322.3,2.24]
[1768729582795,0.13794972,3323.7,3321.9,0.15058]
[1768729582990,0.13794972,3323.7,3322.2,2.242]
[1768729583189,0.13794972,3323.7,3322.2,2.243]
[1768729587705,0.13794972,3323.7,3322.0,0.15057]
[1768729587899,0.13794972,3323.7,3322.1,2.252]
[1768729590396,0.13794972,3323.7,3322.2,2.257]
[1768729595107,0.13794972,3323.7,3322.3,2.267]
[1768729600913,0.13794972,3323.7,3322.3,2.277]
[1768729606909,0.13794972,3323.7,3322.3,2.287]
[1768729613724,0.13794972,3323.7,3322.1,0.15057]
[1768729613925,0.13794972,3323.7,3322.2,2.301]
[1768729614630,0.13794972,3323.7,3322.2,2.45156]
[1768729625642,0.13794972,3323.7,3322.2,0.15056]
[1768729625939,0.13794972,3323.7,3322.3,2.324]
[1768729636152,0.13794972,3323.7,3322.2,0.15056]
[1768729636350,0.13794972,3323.7,3322.3,2.344]
[1768729636652,0.0031246,3324.0,3322.4,0.15056]
[1768729637045,0.0031246,3324.0,3322.4,0.22515535]
[1768729637442,0.0031246,3324.0,3322.5,0.07459688]
[1768729637752,0.0031246,3324.0,3322.5,0.22514688]
[1768729639550,0.96970892,3324.0,3322.6,0.96658432]
[1768729643156,0.0031246,3324.0,3322.8,0.96658432]
[1768729646050,0.96970892,3324.0,3322.6,1.11712432]
[1768729646250,0.96970892,3324.0,3322.6,3.45912432]
[1768729646447,0.96658432,3323.8,3322.6,0.15054]
[1768729649863,0.96658432,3323.6,3322.6,0.15054]
[1768729651555,1.10628767,3323.6,3322.6,0.15054]
[1768729660570,0.13970335,3323.6,3322.6,0.15054]
[1768729660870,1.10628767,3323.6,3322.6,0.15054]
[1768729673973,0.14027681,3323.5,3322.6,0.15054]
[1768729679579,0.96658432,3323.9,3322.6,0.15054]
[1768729679786,1.10686113,3323.9,3322.6,0.15054]
[1768729680188,0.14027681,3323.9,3322.6,0.15054]
[1768729680385,0.14027681,3323.9,3322.6,1.11712432]
[1768729680584,0.14027681,3323.9,3322.6,0.15054]
[1768729681275,1.10686113,3323.9,3322.6,0.15054]
[1768729681479,0.14027681,3323.8,3322.6,0.15054]
[1768729686801,0.14027681,3323.6,3322.6,0.15054]
[1768729686998,1.10686113,3323.5,3322.6,0.15054]
[1768729687697,0.14027681,3323.5,3322.6,0.15054]
[1768729711331,0.14027681,3323.5,3322.6,2.54054]
[1768729722444,0.14027681,3323.5,3322.6,0.15054]
[1768729728547,0.14027681,3323.5,3322.5,2.408]
[1768729728548,0.96668982,3323.0,3322.1,6.87066179]
[1768729728746,0.13296359,3323.5,3322.1,6.87066179]
[1768729729439,0.13296359,3323.5,3321.9,0.29010659]
[1768729729645,0.13296359,3323.5,3322.0,0.13953659]
[1768729731253,0.13296359,3323.5,3321.9,2.56857]
[1768729734152,0.13957894,3323.4,3321.9,0.15057]
[1768729734357,0.13957894,3323.4,3321.9,2.56757]
[1768729734553,0.13957894,3323.4,3321.9,2.71021941]
[1768729736961,0.13957894,3323.4,3321.9,0.29321941]
[1768729737253,0.13957894,3323.4,3321.9,2.56657]
[1768729737458,0.13957894,3323.3,3321.9,2.56657]
[1768729737859,0.13957894,3323.3,3321.9,0.15057]
[1768729740758,0.96668982,3323.6,3321.9,0.29321941]
[1768729740961,1.10626876,3323.6,3321.9,0.29321941]
[1768729741558,0.13957894,3323.5,3321.9,0.29321941]
[1768729758968,0.13957894,3323.9,3322.2,0.14264941]
[1768729761374,0.96675464,3323.6,3322.3,0.96675464]
[1768729762466,0.13957894,3323.9,3322.7,0.96675464]
[1768729762673,0.96987924,3324.0,3322.7,0.96675464]
[1768729766582,0.96987924,3324.0,3322.6,0.96675464]
[1768729769078,0.96675464,3323.9,3322.6,0.96675464]
[1768729771983,0.0031246,3324.0,3322.6,0.96675464]
[1768729772182,0.96675464,3323.9,3322.6,0.96675464]
[1768729772984,0.96675464,3323.9,3322.4,0.29169655]
[1768729773190,0.96675464,3323.9,3322.6,0.96675464]
[1768729779394,0.96675464,3323.7,3322.4,0.29169655]
[1768729779594,0.96675464,3323.7,3322.4,1.25845119]
[1768729782602,0.96675464,3323.8,3322.5,0.15055]
[1768729783398,0.14421648,3324.0,3322.5,0.15055]
[1768729783600,0.96675464,3323.8,3322.5,0.15055]
[1768729785500,0.96675464,3323.8,3322.5,2.54855]
[1768729786195,0.96675464,3323.6,3322.5,0.15055]
[1768729786400,0.96675464,3323.6,3322.5,2.55055]
[1768729791097,0.14421648,3324.0,3322.5,2.55055]
[1768729791308,0.96675464,3323.6,3322.5,2.55055]
[1768729791606,0.96675464,3323.6,3322.5,0.15055]
[1768729791906,0.96675464,3323.6,3322.6,2.411]
[1768729794408,0.14421648,3324.0,3322.6,2.411]
[1768729794602,0.96675464,3323.6,3322.7,2.417]
[1768729799509,0.96675464,3323.6,3322.5,0.15055]
[1768729799808,0.96675464,3323.6,3322.6,2.426]
[1768729801910,0.14421648,3324.0,3322.5,0.15055]
[1768729802210,0.96675464,3323.6,3322.6,2.431]
[1768729802813,0.14421648,3324.0,3322.6,2.431]
[1768729803011,0.96675464,3323.7,3322.6,2.431]
[1768729809723,0.14421648,3324.0,3322.6,2.431]
[1768729810014,0.96675464,3323.6,3322.6,2.431]
[1768729814216,0.14421648,3324.0,3322.6,2.58155]
[1768729814619,0.96675464,3323.7,3322.6,2.58155]
[1768729820310,0.14421648,3324.0,3322.6,2.58155]
[1768729820510,0.96675464,3323.7,3322.6,2.58155]
[1768729823320,0.14421648,3324.0,3322.6,2.58155]
[1768729826416,0.14421648,3324.0,3322.6,0.15055]
[1768729826616,0.14421648,3324.0,3322.7,2.463]
[1768729845733,0.14421648,3324.0,3322.8,2.478]
[1768729852641,0.0031246,3324.0,3322.8,2.478]
[1768729853548,0.0031246,3324.0,3322.8,2.61044938]
[1768729856745,0.0031246,3324.0,3322.9,0.28297938]
[1768729856940,0.0031246,3324.0,3323.0,0.13244938]
[1768729857841,0.0031246,3324.0,3323.1,0.13244938]
[1768729858335,0.36462199,3324.7,3323.1,0.13244938]
[1768729859335,0.36822666,3324.7,3323.2,0.13244938]
[1768729860237,0.00360467,3324.7,3323.2,0.13244938]
[1768729860841,0.00360467,3324.7,3323.3,0.13244938]
[1768729877757,0.97029508,3324.7,3323.3,0.13244938]
[1768729877957,1.11298846,3324.7,3323.2,0.15052]
[1768729878360,0.14269338,3324.6,3323.2,0.15052]
[1768729885378,0.96642526,3324.2,3323.2,0.15052]
[1768729889384,0.96642526,3324.5,3323.2,1.11694526]
[1768729895388,0.96642526,3324.5,3323.2,0.15052]
[1768729895782,0.14269338,3324.6,3323.2,0.15052]
[1768729895980,0.96642526,3324.4,3323.2,0.15052]
[1768729896386,0.96642526,3324.5,3323.2,0.28998301]
[1768729897589,0.96642526,3324.5,3323.2,1.25640827]
[1768729898483,0.96642526,3324.6,3323.2,1.25640827]
[1768729901092,1.10059576,3324.6,3323.2,1.11694526]
[1768729901391,0.96642526,3324.4,3323.2,1.11694526]
[1768729902894,0.96642526,3324.4,3323.2,0.15052]
[1768729903093,0.96642526,3324.2,3323.2,0.15052]
[1768729911103,0.1341705,3324.4,3323.2,0.15052]
[1768729911400,0.96642526,3324.3,3323.2,0.15052]
[1768729921914,0.14336658,3324.3,3323.2,0.15052]
[1768729939642,0.14336658,3324.3,3323.3,0.96642526]
[1768729941439,0.96642526,3324.5,3323.3,0.96642526]
[1768729941838,0.14697125,3324.7,3323.5,0.96642526]
[1768729942933,0.96642526,3324.6,3323.5,0.96642526]
[1768729943739,0.96642526,3324.6,3323.3,0.96642526]
[1768729945344,0.14697125,3324.7,3323.2,0.15052]
[1768729967362,0.14697125,3324.7,3323.2,2.60652]
[1768729982377,0.14697125,3324.7,3323.2,2.59952]
[1768729991576,0.14697125,3324.7,3323.2,0.15052]
[1768729991778,0.14697125,3324.7,3323.2,2.59552]
[1768729995881,0.14697125,3324.7,3323.3,0.28487698]
[1768729995882,0.00360467,3324.7,3323.3,0.28487698]
[1768729996074,0.00360467,3324.7,3323.4,0.13436698]
[1768729998285,0.00360467,3324.7,3323.4,0.28487698]
[1768730005293,0.96624567,3324.6,3323.4,0.28487698]
[1768730008496,0.00360467,3324.7,3323.4,0.28487698]
[1768730008686,0.96624567,3324.6,3323.4,0.28487698]
[1768730013291,0.00360467,3324.7,3323.4,0.28487698]
[1768730013495,0.96985034,3324.7,3323.4,0.28487698]
[1768730016792,0.96985034,3324.7,3323.5,0.15051]
[1768730017105,0.00360467,3324.7,3323.9,0.96624567]
[1768730017396,0.00360467,3324.7,3323.9,0.96840583]
[1768730018186,0.00360467,3324.7,3323.9,0.00216016]
[1768730018598,0.96624567,3325.5,3324.1,0.96624567]
[1768730018895,0.96624567,3325.3,3324.1,0.96624567]
[1768730019495,0.96983078,3325.3,3324.1,0.96624567]
[1768730023503,0.00358511,3325.3,3324.1,0.96624567]
[1768730039614,0.00358511,3325.3,3324.0,0.13430485]
[1768730039812,0.00358511,3325.3,3324.1,0.96624567]
[1768730041612,1.09941304,3326.1,3324.7,0.96624567]
[1768730042803,1.10288614,3326.1,3324.7,0.96624567]
[1768730043020,0.13664047,3326.1,3324.7,0.96624567]
[1768730043315,0.96624567,3326.0,3324.7,0.96624567]
[1768730045719,0.13664047,3326.1,3324.7,0.96624567]
[1768730045910,1.10288614,3326.1,3324.7,0.96624567]
[1768730050205,0.96624567,3326.0,3324.7,0.96624567]
[1768730055425,0.13664047,3326.1,3324.7,0.96624567]
[1768730055625,0.96624567,3326.0,3324.7,0.96624567]
[1768730056623,0.0034731,3326.1,3324.9,0.96624567]
[1768730057127,0.0034731,3326.1,3324.9,1.10055052]
[1768730061732,0.0034731,3326.1,3325.1,0.96624567]
[1768730062529,0.0034731,3326.1,3324.9,0.13430485]
[1768730062829,0.0034731,3326.1,3325.0,0.96624567]
[1768730064128,0.0034731,3326.1,3324.9,0.13430485]
[1768730064340,0.96971877,3326.1,3324.9,0.13430485]
[1768730064927,0.96971877,3326.1,3324.7,1.11669567]
[1768730065232,0.96624567,3326.0,3324.7,1.25344621]
[1768730067431,0.0034731,3326.1,3324.7,0.28720054]
[1768730069936,1.10143753,3326.1,3324.7,0.15045]
[1768730070125,0.13251206,3326.0,3324.3,0.13675054]
[1768730070434,0.13251206,3326.0,3324.1,7.0151082]
[1768730070628,0.13251206,3325.6,3324.1,7.0151082]
[1768730070840,0.13251206,3325.6,3324.0,0.15048]
[1768730087958,0.13251206,3325.6,3324.1,0.13653307]
[1768730097560,0.13251206,3325.6,3324.0,0.15048]
[1768730126188,0.13251206,3325.6,3324.0,2.55548]
[1768730126588,0.13251206,3325.6,3324.0,2.68940692]
[1768730126786,0.13251206,3325.6,3324.1,0.13392692]
[1768730129497,0.96585222,3325.3,3324.1,0.13392692]
[1768730132194,0.96585222,3325.3,3324.0,3.52133222]
[1768730132497,0.96585222,3325.3,3324.0,2.55548]
[1768730133098,0.96585222,3325.1,3324.0,2.55548]
[1768730133294,0.96585222,3325.2,3324.0,0.15048]
[1768730135298,0.96585222,3325.0,3324.0,0.15048]
[1768730136900,0.96585222,3325.1,3324.0,0.15048]
[1768730137101,0.13897953,3325.3,3324.0,0.15048]
[1768730137302,0.96585222,3325.1,3324.0,0.15048]
[1768730140393,1.10483175,3325.3,3324.0,0.15048]
[1768730140593,0.96585222,3325.3,3324.0,0.15048]
[1768730144602,0.13291594,3325.7,3324.0,0.15048]
[1768730144906,0.96585222,3325.6,3324.2,0.96585222]
[1768730148806,1.09876816,3325.6,3324.2,0.96585222]
[1768730150108,1.09876816,3325.6,3324.0,0.15048]
[1768730150308,1.09876816,3325.6,3324.2,0.96585222]
[1768730151006,1.09876816,3325.6,3324.0,0.15048]
[1768730151202,0.13291594,3325.6,3324.1,0.96585222]
[1768730151410,0.96585222,3325.5,3324.1,0.96585222]
[1768730151999,0.96585222,3325.5,3324.2,0.96585222]
[1768730154102,0.13291594,3325.6,3324.2,0.96585222]
[1768730154406,1.09876816,3325.6,3324.2,0.96585222]
[1768730161713,0.13291594,3325.6,3324.2,0.96585222]
[1768730161915,0.12937979,3326.0,3324.6,0.96585222]
[1768730162114,0.0034731,3326.1,3324.8,0.96585222]
[1768730162316,0.96932532,3326.1,3324.8,0.96585222]
[1768730166820,0.96585222,3326.8,3325.6,0.96585222]
[1768730167221,0.96585222,3326.8,3325.4,0.96585222]
[1768730167714,0.96585222,3326.6,3325.4,0.96585222]
[1768730169222,0.00277368,3326.8,3325.4,0.96585222]
[1768730169430,0.96585222,3326.6,3325.4,0.96585222]
[1768730170019,0.00277368,3326.8,3325.4,0.96585222]
[1768730170219,0.96585222,3326.7,3325.4,0.96585222]
[1768730171219,0.00277368,3326.8,3325.4,0.96585222]
[1768730171411,0.96585222,3326.7,3325.4,0.96585222]
[1768730173115,0.9686259,3326.8,3325.5,0.96585222]
[1768730175530,0.00277368,3326.8,3325.7,0.96585222]
[1768730177123,0.9686259,3326.8,3325.7,0.96585222]
[1768730178226,0.9686259,3326.8,3325.5,0.96585222]
[1768730180523,0.9686259,3326.8,3324.3,3.012]
[1768730180524,0.96585222,3325.8,3324.7,0.14295886]
[1768730180723,0.96585222,3325.6,3324.3,0.29342886]
[1768730181028,0.96585222,3325.6,3324.3,1.25928108]
[1768730181427,0.96585222,3325.6,3324.3,3.64228108]
[1768730182230,1.09523201,3325.8,3324.5,0.96585222]
[1768730184925,1.09523201,3325.8,3324.4,0.96585222]
[1768730185934,0.96585222,3325.6,3324.4,0.96585222]
[1768730186933,0.12937979,3325.8,3324.4,0.96585222]
[1768730187230,0.96585222,3325.6,3324.4,0.96585222]
[1768730187433,0.96585222,3325.6,3324.3,2.67542886]
[1768730189837,0.96585222,3325.6,3324.3,0.29342886]
[1768730190033,0.96585222,3325.6,3324.3,2.53147]
[1768730191134,0.96585222,3325.4,3324.3,0.15047]
[1768730191335,0.12937979,3325.8,3324.3,0.15047]
[1768730191633,0.96584194,3325.5,3324.3,0.15047]
[1768730191837,0.12937979,3325.8,3324.3,0.15047]
[1768730215261,0.12937979,3325.8,3324.3,0.28782545]
[1768730215567,1.10570967,3326.2,3324.4,0.13735545]
[1768730215869,0.13986773,3326.1,3324.4,0.13735545]
[1768730221366,0.13986773,3326.1,3324.3,0.15047]
[1768730225173,0.13986773,3326.1,3324.3,0.28782545]
[1768730225376,0.13986773,3326.1,3324.5,0.13735545]
[1768730225673,0.13986773,3326.1,3324.6,0.13735545]
[1768730226073,0.96584194,3326.6,3324.6,0.13735545]
[1768730226265,0.44103643,3326.5,3324.6,0.13735545]
[1768730226464,0.3011687,3326.4,3324.6,0.13735545]
[1768730226777,0.13986773,3326.5,3324.6,0.13735545]
[1768730230174,0.13986773,3326.5,3324.7,0.13735545]
[1768730231569,0.13986773,3326.5,3324.8,2.372]
[1768730232877,0.13986773,3326.5,3324.8,2.50935545]
[1768730234275,0.13986773,3326.5,3324.8,2.372]
[1768730234471,0.13986773,3326.5,3324.9,0.13735545]
[1768730234770,0.00277368,3326.8,3324.9,0.13735545]
[1768730244987,0.00277368,3326.8,3324.9,0.28779545]
[1768730247094,0.00277368,3326.8,3324.8,3.33784194]
[1768730247095,0.00277368,3326.8,3325.0,0.29140078]
[1768730247390,0.00277368,3326.8,3325.1,0.14096078]
[1768730251293,0.96512402,3326.6,3325.3,0.96512402]
[1768730254194,0.00277368,3326.8,3325.3,0.96512402]
[1768730254386,0.96512402,3326.6,3325.3,0.96512402]
[1768730258402,0.96512402,3326.6,3325.1,0.14096078]
[1768730258898,0.96512402,3326.6,3325.3,0.96512402]
[1768730264499,0.96512402,3326.5,3325.3,0.96512402]
[1768730266199,0.96512402,3326.5,3325.1,0.14096078]
[1768730266394,0.96512402,3326.5,3325.3,0.96512402]
[1768730273410,0.96512402,3326.7,3325.3,0.96512402]
[1768730275112,0.14123225,3326.8,3325.3,0.96512402]
[1768730275310,0.96512402,3326.6,3325.3,0.96512402]
[1768730276610,0.14123225,3326.8,3325.3,1.09432735]
[1768730276820,0.96512402,3326.7,3325.4,0.96512402]
[1768730280810,1.10635627,3326.8,3325.4,0.96512402]
[1768730281211,0.00277368,3326.8,3325.4,0.96512402]
[1768730281406,0.9678977,3326.8,3325.4,1.09432735]
[1768730283018,0.00277368,3326.8,3325.4,1.09432735]
[1768730283219,0.9678977,3326.8,3325.4,1.09432735]
[1768730284323,0.00277368,3326.8,3325.6,0.96512402]
[1768730285915,0.00277368,3326.8,3325.4,0.12920333]
[1768730286121,0.00277368,3326.8,3325.8,0.96512402]
[1768730287017,0.00277368,3326.8,3325.4,0.12920333]
[1768730287408,0.00277368,3326.8,3325.7,0.96512402]
[1768730297429,0.96512402,3326.4,3325.5,0.15041]
[1768730297731,1.10358259,3326.6,3325.5,0.15041]
[1768730298732,0.13845857,3326.6,3325.5,0.15041]
[1768730298934,1.10358259,3326.6,3325.5,0.15041]
[1768730303434,0.13845857,3326.6,3325.5,0.15041]
[1768730303632,1.10358259,3326.6,3325.5,0.15041]
[1768730306538,0.9678977,3326.8,3325.5,1.11553402]
[1768730307129,0.00277368,3326.8,3325.7,0.96512402]
[1768730309132,0.00277368,3326.8,3325.5,0.28308729]
[1768730309532,0.00277368,3326.8,3325.6,0.96512402]
[1768730311344,0.00277368,3326.8,3325.5,0.28308729]
[1768730311541,0.00277368,3326.8,3325.6,0.13267729]
[1768730327354,0.00277368,3326.8,3325.6,0.28308729]
[1768730333671,0.00277368,3326.8,3325.6,0.15041]
[1768730336879,0.00277368,3326.8,3325.2,2.333]
[1768730337383,0.00277368,3326.8,3325.2,0.13200075]
[1768730338086,0.1406201,3326.8,3325.2,0.13200075]
[1768730338581,0.13784642,3326.7,3324.8,7.0151082]
[1768730339177,0.13784642,3326.7,3324.5,0.13200075]
[1768730344691,0.13784642,3326.7,3324.7,0.13200075]
[1768730346191,0.13784642,3326.7,3324.6,0.9650014]
[1768730347487,0.9650014,3326.6,3324.6,0.9650014]
[1768730347790,0.13784642,3326.5,3324.6,0.9650014]
[1768730349185,0.5,3325.7,3324.6,0.9650014]
[1768730350595,0.5,3325.7,3324.6,1.09700215]
[1768730352486,0.5,3325.7,3324.6,0.13200075]
[1768730363206,0.5,3325.7,3324.4,2.47747]
[1768730364194,0.5,3325.7,3324.4,0.15047]
[1768730365003,0.63631566,3325.7,3324.4,0.15047]
[1768730365201,0.13631566,3325.6,3324.4,0.15047]
[1768730373308,0.13631566,3325.6,3324.4,1.11614075]
[1768730373511,0.13631566,3325.6,3324.1,0.14175148]
[1768730373512,0.96567075,3325.4,3324.1,0.96567075]
[1768730373808,1.10198641,3325.4,3324.1,0.96567075]
[1768730374910,0.13631566,3325.3,3324.0,0.96567075]
[1768730375300,0.96567075,3325.2,3323.9,0.00216016]
[1768730377613,0.13259695,3325.1,3323.9,0.00216016]
[1768730381904,0.96567075,3324.8,3323.9,0.00216016]
[1768730382510,0.13259695,3324.8,3323.9,0.00216016]
[1768730385819,0.13259695,3324.8,3323.0,0.1327903]
[1768730386022,0.13259695,3324.8,3323.6,0.96567075]
[1768730386823,0.13259695,3324.8,3323.6,0.96860864]
[1768730387526,1.0982677,3325.2,3323.9,0.96567075]
[1768730387727,0.13259695,3325.2,3324.1,0.96567075]
[1768730396845,0.13259695,3325.2,3323.6,0.13572819]
[1768730397047,0.13259695,3325.2,3324.0,0.96567075]
[1768730397646,0.13259695,3325.2,3323.6,0.13572819]
[1768730397847,0.13259695,3325.2,3324.0,0.96567075]
[1768730400548,0.96567075,3325.5,3324.2,0.96567075]
[1768730401236,0.13689452,3325.6,3324.2,0.96567075]
[1768730401441,0.96567075,3325.5,3324.2,0.96567075]
[1768730401644,0.96567075,3325.5,3323.8,0.13599733]
[1768730401848,0.96567075,3325.5,3324.2,0.96567075]
[1768730402148,0.96567075,3325.4,3324.2,0.96567075]
[1768730403651,1.10256527,3325.4,3324.2,0.96567075]
[1768730407357,0.5,3324.7,3324.2,0.96567075]
[1768730408758,0.35666718,3324.7,3324.2,1.10166808]
[1768730408948,0.96567075,3325.4,3324.2,0.96567075]
[1768730409656,1.10256527,3325.4,3324.2,0.96567075]
[1768730410050,1.10256527,3325.4,3324.1,0.96567075]
[1768730410258,0.13689452,3325.3,3324.1,0.96567075]
[1768730411459,0.13689452,3325.3,3323.7,0.23747254]
[1768730411652,0.13689452,3325.3,3324.1,0.96567075]
[1768730416964,0.13689452,3325.3,3323.8,0.15049]
[1768730417165,0.13689452,3325.3,3324.1,0.96567075]
[1768730422871,0.13689452,3325.3,3323.8,0.15049]
[1768730423165,0.13689452,3325.3,3324.1,0.96567075]
[1768730425871,0.13689452,3325.3,3323.8,0.15049]
[1768730426168,0.13689452,3325.3,3324.1,0.96567075]
[1768730427666,0.13689452,3325.3,3323.8,0.15049]
[1768730427866,0.13689452,3325.3,3324.1,0.96567075]
[1768730430572,0.13689452,3325.3,3323.7,0.08697254]
[1768730430573,0.13294725,3325.8,3324.7,0.96567075]
[1768730430763,0.13294725,3326.5,3325.0,0.96567075]
[1768730430967,0.13294725,3326.1,3325.0,0.96567075]
[1768730431165,0.13294725,3326.1,3324.8,0.96567075]
[1768730431373,1.098618,3326.0,3324.8,0.96567075]
[1768730431574,1.098618,3325.8,3324.5,0.96567075]
[1768730431763,0.13294725,3325.7,3324.5,0.96567075]
[1768730431974,0.96567075,3325.2,3323.9,0.96567075]
[1768730433273,0.13294725,3325.4,3323.8,0.15049]
[1768730433868,0.13294725,3325.4,3323.9,0.15049]
[1768730435577,0.13294725,3325.4,3323.9,1.11637703]
[1768730436566,0.13933305,3325.9,3324.0,0.24324599]
[1768730436772,0.13933305,3325.9,3324.3,1.05865302]
[1768730438574,0.13933305,3325.9,3324.3,1.20912302]
[1768730441579,0.13933305,3326.3,3324.4,0.24535899]
[1768730441780,0.13933305,3326.3,3324.6,0.09488899]
[1768730442181,0.13933305,3326.3,3324.6,0.24534899]
[1768730446976,0.13933305,3326.3,3324.8,0.15045]
[1768730447285,0.13933305,3326.7,3324.8,0.24557155]
[1768730456691,0.1415882,3326.5,3324.8,0.24557155]
[1768730462697,0.1415882,3326.5,3325.0,0.15044]
[1768730462898,0.00277368,3326.8,3324.4,8.321]
[1768730462899,0.00277368,3326.8,3325.4,0.15042]
[1768730463283,0.00277368,3326.8,3325.5,1.20745469]
[1768730463488,0.00277368,3326.8,3325.5,0.24156766]
[1768730475103,0.00277368,3326.8,3325.5,0.15041]
[1768730479613,0.00277368,3326.8,3325.5,0.239167]
[1768730479816,0.00277368,3326.8,3325.6,0.15041]
[1768730484925,0.00277368,3326.8,3325.7,2.322]
[1768730489311,0.13603108,3326.8,3325.6,0.15041]
[1768730489512,0.13603108,3326.8,3324.9,0.15044]
[1768730489712,0.13603108,3326.8,3325.0,1.413]
[1768730490015,0.1332574,3326.6,3325.0,2.329]
[1768730490225,0.1332574,3326.4,3324.2,1.11635703]
[1768730490421,0.1332574,3326.2,3324.3,1.99047]
[1768730491721,0.1332574,3326.2,3324.4,0.15047]
[1768730492425,0.1332574,3326.2,3324.5,2.332]
[1768730493835,0.1332574,3326.0,3324.4,0.15047]
[1768730494123,0.1332574,3325.8,3324.4,0.15047]
[1768730494822,0.1332574,3325.8,3324.2,2.337]
[1768730495421,0.1332574,3325.5,3324.2,3.3027381]
[1768730496222,0.14453236,3324.2,3323.1,3.011]
[1768730496426,1.11027046,3323.9,3322.4,0.9657381]
[1768730496619,0.14453236,3323.9,3322.7,0.9657381]
[1768730496821,0.14453236,3323.9,3323.0,0.9657381]
[1768730497216,0.14726971,3323.9,3323.0,0.96929749]
[1768730497629,0.14726971,3323.9,3323.0,0.00355939]
[1768730499027,0.14726971,3323.9,3323.0,0.96929749]
[1768730502231,0.14726971,3323.9,3323.0,0.00355939]
[1768730504429,1.11300781,3323.9,3323.0,0.00355939]
[1768730504634,0.14453236,3323.8,3323.0,0.00355939]
[1768730505128,0.14453236,3323.6,3322.1,2.337]
[1768730505335,0.14453236,3323.6,3322.3,0.9657381]
[1768730506224,0.14453236,3323.6,3322.3,0.96871345]
[1768730506620,0.14453236,3323.6,3322.3,0.00297535]
[1768730506819,0.14453236,3323.6,3322.3,0.96871345]
[1768730518530,0.14453236,3323.6,3322.6,0.9657381]
[1768730518931,0.00273735,3323.9,3322.6,0.9657381]
[1768730519236,0.13796919,3323.9,3322.5,0.9657381]
[1768730519735,0.13523184,3323.8,3322.5,0.9657381]
[1768730522643,0.13523184,3323.8,3322.3,0.96871345]
[1768730523638,0.13523184,3323.8,3322.5,0.9657381]
[1768730525241,1.07596177,3323.7,3322.5,0.9657381]
[1768730525442,1.07596177,3323.6,3322.5,0.9657381]
[1768730525737,0.13523184,3323.8,3323.1,0.9657381]
[1768730525937,0.00273735,3323.9,3323.1,0.9657381]
[1768730526138,1.07592825,3323.8,3323.1,0.9657381]
[1768730526442,1.07592825,3323.7,3322.9,0.9657381]
[1768730526737,0.00273735,3323.9,3322.9,0.9657381]
[1768730526943,1.07698088,3323.8,3323.1,0.9657381]
[1768730527135,0.00273735,3323.9,3323.1,0.9657381]
[1768730527336,1.07704431,3323.8,3323.1,0.9657381]
[1768730527536,0.00273735,3323.9,3323.1,0.9657381]
[1768730527738,1.07704431,3323.8,3323.1,0.9657381]
[1768730528042,0.00273735,3323.9,3323.1,0.9657381]
[1768730528242,1.07710238,3323.8,3323.1,0.9657381]
[1768730528443,0.00273735,3323.9,3323.1,0.9657381]
[1768730528643,1.07710238,3323.8,3323.1,0.9657381]
[1768730528943,0.00273735,3323.9,3323.1,0.9657381]
[1768730529145,1.07710238,3323.8,3323.1,0.9657381]
[1768730529444,0.00273735,3323.9,3323.1,0.9657381]
[1768730529640,1.0771687,3323.8,3323.1,0.9657381]
[1768730529945,0.00273735,3323.9,3323.1,0.9657381]
[1768730530143,1.0771687,3323.8,3323.0,0.9657381]
[1768730530445,0.00273735,3323.9,3323.0,0.9657381]
[1768730530646,1.07723936,3323.8,3323.0,0.9657381]
[1768730530942,0.00273735,3323.9,3323.0,0.9657381]
[1768730531146,1.07723936,3323.8,3323.0,0.9657381]
[1768730531447,0.00273735,3323.9,3323.0,0.9657381]
[1768730531648,1.07731647,3323.8,3323.0,0.9657381]
[1768730531832,0.00273735,3323.9,3323.0,0.9657381]
[1768730532039,1.07731667,3323.8,3322.8,0.9657381]
[1768730532240,0.00273735,3323.9,3322.8,0.9657381]
[1768730532433,1.07740215,3323.8,3322.8,0.9657381]
[1768730532637,0.00273735,3323.9,3322.8,0.9657381]
[1768730532849,1.07740795,3323.8,3322.8,0.9657381]
[1768730533041,0.00273735,3323.9,3322.8,0.9657381]
[1768730533247,1.07749696,3323.8,3322.8,0.9657381]
[1768730533445,0.00273735,3323.9,3322.4,0.23860228]
[1768730533644,1.07749696,3323.8,3322.7,0.9657381]
[1768730533947,1.07751785,3323.7,3322.4,1.1162981]
[1768730534148,0.13523184,3323.8,3322.4,1.1162981]
[1768730534351,1.07764038,3323.7,3322.4,1.1162981]
[1768730534547,0.13523184,3323.8,3322.4,1.1162981]
[1768730534753,1.07765499,3323.7,3322.4,1.1162981]
[1768730534941,0.13523184,3323.8,3322.4,1.1162981]
[1768730535144,1.07765498,3323.7,3322.4,1.1162981]
[1768730535340,0.13523184,3323.8,3322.7,0.9657381]
[1768730535540,1.07763325,3323.7,3322.7,0.9657381]
[1768730535736,0.13523184,3323.8,3322.7,0.9657381]
[1768730535937,1.07763223,3323.7,3322.7,0.9657381]
[1768730536142,0.13523184,3323.8,3322.4,0.15056]
[1768730536339,1.21287967,3323.7,3322.4,1.1162981]
[1768730536544,0.13523184,3323.7,3322.4,1.1162981]
[1768730536851,1.07767838,3323.6,3322.4,1.1162981]
[1768730537053,0.13523184,3323.7,3322.4,1.1162981]
[1768730537245,1.07768547,3323.6,3322.4,1.1162981]
[1768730537460,0.13523184,3323.7,3322.4,0.15056]
[1768730537659,0.13523184,3323.5,3322.4,0.15056]
[1768730539764,0.13523184,3323.5,3322.4,1.1162981]
[1768730540646,0.13523184,3323.5,3322.4,0.15056]
[1768730541158,0.13523184,3323.8,3322.6,0.9657381]
[1768730541457,1.0776973,3323.7,3322.6,0.9657381]
[1768730541657,0.13523184,3323.8,3322.6,0.9657381]
[1768730541845,1.07769748,3323.7,3322.6,0.9657381]
[1768730542042,0.13523184,3323.8,3322.6,0.9657381]
[1768730542246,1.07770039,3323.7,3322.6,0.9657381]
[1768730542449,0.13523184,3323.8,3322.6,0.9657381]
[1768730542660,1.07770039,3323.7,3322.6,0.9657381]
[1768730542956,0.13523184,3323.8,3322.6,0.9657381]
[1768730543156,1.07770039,3323.7,3322.6,0.9657381]
[1768730543357,0.13523184,3323.8,3322.6,0.9657381]
[1768730543542,1.07770268,3323.7,3322.6,0.9657381]
[1768730543749,0.13523184,3323.8,3322.6,0.9657381]
[1768730543953,1.07770268,3323.7,3322.6,0.9657381]
[1768730544148,0.13523184,3323.8,3322.6,0.9657381]